[Event "NY Presidents Day GM-A 2024"]
[Site "New York"]
[Date "2024.02.19"]
[Round "8.2"]
[White "Eidelman, Gabriel"]
[Black "Mandizha, Farai"]
[Result "1-0"]
[ECO "A43"]
[WhiteElo "2343"]
[BlackElo "2367"]
[Annotator "TA"]
[PlyCount "63"]
[EventDate "2024.02.14"]
[EventType "tourn"]
[EventCountry "USA"]
[SourceTitle "playchess.com"]
[Source "ChessBase"]
[SourceQuality "1"]
[TimeControl "5400+30"]

{[%evp 11,63,14,14,-5,0,-16,-11,-16,41,22,64,77,177,187,179,170,533,571,544,505,508,515,508,510,591,585,597,578,559,566,691,590,729,706,654,659,911,738,1375,1278,1128,765,898,741,1668,1626,1668,1645,1508,937,1745,1729,6387,1446]} 1. d4 {[%emt 0:00:36][%cal Bd2d4,Bd4d5][%mdl 32]} Nf6 {[%emt 0:05:49]} 2. Nf3 {[%emt 0:00:08]} g6 {[%emt 0:01:41]} 3. Nc3 {[%emt 0:00:12]} c5 {[%emt 0:01:42]} 4. d5 {[%emt 0:00:47]} d6 {[%emt 0:04:25]} 5. h3 {[%emt 0:03:45]} Bg7 {[%emt 0:00:15]} 6. e4 {[%emt 0:00:27]} O-O {[%emt 0:00:16][%cal Ob7b5]} 7. Nd2 {[%emt 0:05:06]} Na6 {[%emt 0:06:44]} 8. Bc4 {[%emt 0:14:32]} Nc7 {[%emt 0:00:58]} 9. O-O {[%emt 0:02:29] The position is equal.} Nh5 {[%emt 0:15:25]} ({Better is} 9... e6 $11) 10. a4 {[%emt 0:04:44]} Nf4 {[%emt 0:04:04]} 11. Nf3 {[%emt 0:03:51]} f5 {[%emt 0:03:03] [#]} 12. e5 $1 $18 {[%emt 0:02:49]} ({But not} 12. Bxf4 $6 fxe4 13. Bxd6 exd6 14. Nxe4 Bxb2 $14) 12... Nh5 {[%emt 0:03:11]} 13. Bg5 $36 {[%emt 0:05:36][%mdl 2048] aiming for exd6. Keeping Black busy.} h6 $2 {[%emt 0:01:11]} (13... Kh8 {is more resistant.}) 14. exd6 {[%emt 0:01:16] White is clearly winning.} hxg5 {[%emt 0:05:08]} 15. dxe7 {[%emt 0:00:20]} Qd6 {[%emt 0:01:47]} 16. exf8=Q+ {[%emt 0:00:11]} Kxf8 {[%emt 0:10:53]} 17. Nxg5 {[%emt 0:02:42]} Bd4 {[%emt 0:07:19]} 18. Qf3 {[%emt 0:04:07]} Bd7 {[%emt 0:01:55]} 19. Nb5 {[%emt 0:06:29]} Nxb5 {[%emt 0:01:21]} 20. Bxb5 {[%emt 0:01:48]} Bxb2 {[%emt 0:06:05]} 21. Rae1 {[%emt 0:00:10]} Rd8 {[%emt 0:00:37]} 22. Bxd7 {[%emt 0:05:04]} Rxd7 {[%emt 0:00:06]} 23. c4 {[%emt 0:00:14]} Kg7 {[%emt 0:12:45]} 24. Re8 {[%emt 0:01:48]} Re7 {[%emt 0:04:19]} 25. Rxe7+ {[%emt 0:03:11]} Qxe7 {[%emt 0:00:00]} 26. Ne6+ {[%emt 0:00:11]} Kf7 {[%emt 0:01:18]} 27. Qe3 {[%emt 0:01:26]} b6 {[%emt 0:00:53]} 28. Re1 {[%emt 0:00:20]} Bf6 {[%emt 0:00:37] Inhibits Ng5+.} 29. Qh6 {[%emt 0:00:50]} Ng7 {[%emt 0:00:28]} 30. Qh8 {[%emt 0:03:55]} Qd6 {[%emt 0:00:40]} 31. Nxg7 {[%emt 0:00:13]} Qd7 {[%emt 0:00:34] Prevents Re8.} 32. Qe8+ {[%emt 0:00:22] Black did not feel at home in the position after the opening.   Weighted Error Value: White=0.17 (very precise) /Black=0.54.  Mistake:       	---       	Black=3      Inaccurate:     	---       	Black=1      OK:         	White=5     	Black=6      Best:        	White=1     	---} 1-0

[Event "NY Presidents Day GM-A 2024"]
[Site "New York"]
[Date "2024.02.19"]
[Round "8.3"]
[White "Paragua, Mark"]
[Black "Kaliksteyn, Alexander"]
[Result "1/2-1/2"]
[ECO "A08"]
[WhiteElo "2448"]
[BlackElo "2363"]
[Annotator "TA"]
[PlyCount "31"]
[EventDate "2024.02.14"]
[EventType "tourn"]
[EventCountry "USA"]
[SourceTitle "playchess.com"]
[Source "ChessBase"]
[SourceQuality "1"]
[TimeControl "5400+30"]

{[%evp 11,31,-27,-11,-25,-4,-22,-3,-43,-32,-22,-22,-27,-17,-33,0,-16,0,-9,-10,-14,-7,0]} 1. Nf3 {[%emt 0:09:42]} d5 {[%emt 0:00:04]} 2. g3 {[%emt 0:00:15]} c5 {[%emt 0:00:05]} 3. Bg2 {[%emt 0:00:03]} Nc6 {[%emt 0:00:05]} 4. O-O {[%emt 0:00:06]} e5 {[%emt 0:00:10]} 5. d3 {[%emt 0:00:09]} Be7 {[%emt 0:00:12]} 6. e4 {[%emt 0:00:16]} d4 {[%emt 0:00:05]} 7. Na3 {[%emt 0:00:11]} h5 {[%emt 0:00:16]} 8. Nc4 {[%emt 0:00:06]} Qc7 {[%emt 0:00:07]} 9. h4 {[%emt 0:01:04]} Nf6 {[%emt 0:00:16]} 10. a4 {[%emt 0:00:07]} Bg4 {[%emt 0:00:45]} 11. c3 {[%emt 0:00:13]} Nd7 {[%emt 0:00:15]} 12. a5 {[%emt 0:00:26]} f6 {[%emt 0:00:25]} 13. Qa4 {[%emt 0:00:27] The position is equal.} O-O {[%emt 0:01:39]} 14. Bd2 {[%emt 0:00:15]} Be6 {[%emt 0:00:28]} 15. Rfc1 {[%emt 0:00:15]} Rac8 {[%emt 0:00:09]} 16. cxd4 {[%emt 0:00:09] Weighted Error Value: White=0.09 (flawless) /Black=0.09 (flawless) .  Inaccurate:     	White=1     	Black=1      OK:         	White=5     	Black=2} 1/2-1/2

[Event "NY Presidents Day GM-A 2024"]
[Site "New York"]
[Date "2024.02.19"]
[Round "8.4"]
[White "Griffith, Kyron"]
[Black "Rorrer, Grayson"]
[Result "1/2-1/2"]
[ECO "B53"]
[WhiteElo "2367"]
[BlackElo "2396"]
[Annotator "RC"]
[PlyCount "42"]
[EventDate "2024.02.14"]
[EventType "tourn"]
[EventCountry "USA"]
[SourceTitle "playchess.com"]
[Source "ChessBase"]
[SourceQuality "1"]
[TimeControl "5400+30"]

1. e4 {[%emt 0:00:03]} c5 {[%emt 0:00:18]} 2. Nf3 {[%emt 0:00:06]} d6 {[%emt 0:00:06]} 3. d4 {[%emt 0:00:05]} cxd4 {[%emt 0:00:07]} 4. Qxd4 {[%emt 0:00:05]} Nc6 {[%emt 0:00:10]} 5. Qd3 {[%emt 0:00:08]} g6 {[%emt 0:00:08]} 6. Nc3 {[%emt 0:00:46]} Bg7 {[%emt 0:00:08]} 7. Nd5 {[%emt 0:03:11]} Nf6 {[%emt 0:01:25]} 8. c3 {[%emt 0:00:23]} O-O {[%emt 0:00:46]} 9. Bg5 {[%emt 0:00:15]} h6 {[%emt 0:02:39]} 10. Bxf6 {[%emt 0:00:50]} exf6 {[%emt 0:00:10]} 11. Be2 {[%emt 0:01:49]} f5 {[%emt 0:01:16]} 12. exf5 {[%emt 0:05:44]} Bxf5 {[%emt 0:00:13]} 13. Qd2 {[%emt 0:00:11]} Re8 {[%emt 0:01:24]} 14. O-O {[%emt 0:00:37]} Be4 {[%emt 0:00:57]} 15. Rfe1 {[%emt 0:02:55]} Qa5 {[%emt 0:01:30]} 16. Rad1 {[%emt 0:05:52]} Rad8 {[%emt 0:03:42]} 17. a3 {[%emt 0:10:51]} Qa4 {[%emt 0:08:32]} 18. Nc7 {[%emt 0:13:48]} Re7 {[%emt 0:00:26]} 19. Nd5 {[%emt 0:01:09]} Ree8 {[%emt 0:00:55]} 20. Nc7 {[%emt 0:00:27]} Re7 {[%emt 0:00:15]} 21. Nd5 {[%emt 0:00:08]} Ree8 {[%emt 0:00:05]} 1/2-1/2

[Event "NY Presidents Day GM-A 2024"]
[Site "New York"]
[Date "2024.02.19"]
[Round "8.5"]
[White "Novik, Maxim"]
[Black "Yu, Jiangwei"]
[Result "1-0"]
[ECO "A11"]
[WhiteElo "2399"]
[BlackElo "2357"]
[Annotator "TA"]
[PlyCount "69"]
[EventDate "2024.02.14"]
[EventType "tourn"]
[EventCountry "USA"]
[SourceTitle "playchess.com"]
[Source "ChessBase"]
[SourceQuality "1"]
[TimeControl "5400+30"]

{[%evp 16,69,6,0,6,5,6,9,12,0,14,5,14,3,23,29,29,17,0,0,0,0,49,47,50,37,37,45,54,42,24,10,49,47,47,37,34,39,70,67,65,10,8,10,21,30,16,0,170,148,238,116,115,122,29990,29991]} 1. Nf3 {[%emt 0:00:04]} d5 {[%emt 0:08:13]} 2. g3 {[%emt 0:00:06]} Bg4 {[%emt 0:00:38]} 3. Bg2 {[%emt 0:00:36]} e6 {[%emt 0:00:15]} 4. c4 {[%emt 0:04:19]} c6 {[%emt 0:00:18]} 5. cxd5 {[%emt 0:02:18]} Bxf3 {[%emt 0:00:08]} 6. Bxf3 {[%emt 0:00:06]} cxd5 {[%emt 0:00:03]} 7. d4 {[%emt 0:08:28]} Nc6 {[%emt 0:01:38]} 8. O-O {[%emt 0:00:46]} Nf6 {[%emt 0:00:17]} 9. Nc3 {[%emt 0:00:08]} Be7 {[%emt 0:00:42]} 10. e3 {[%emt 0:01:06]} O-O {[%emt 0:01:12]} 11. Qe2 {[%emt 1:18:03]} Rc8 {[%emt 0:10:49] The position is equal.} 12. Rd1 {[%emt 0:00:00]} Qb6 {[%emt 0:03:45]} 13. Bd2 {[%emt 0:00:00]} a6 {[%emt 0:14:19]} 14. Rac1 {[%emt 0:00:00]} Qxb2 {[%emt 0:13:58]} 15. Rb1 {[%emt 0:00:00]} Qa3 {[%emt 0:00:18]} 16. Rb3 {[%emt 0:00:00]} Qd6 {[%emt 0:01:15]} 17. Rxb7 {[%emt 0:00:00][%cal Od1b1]} Na5 {[%emt 0:05:37]} 18. Nb5 {[%emt 0:00:00]} axb5 {[%emt 0:00:14]} (18... Qd8 $11 {is more appropriate.} 19. Bxa5 Qxa5) 19. Bxa5 $14 {[%emt 0:00:00][%cal Oa2a4]} Qa3 {[%emt 0:00:13]} 20. Be1 {[%emt 0:00:00][%cal Od1d3]} Rb8 {[%emt 0:04:32]} 21. Qxb5 {[%emt 0:00:00]} Bd6 {[%emt 0:00:18]} 22. Rxb8 {[%emt 0:00:00]} Rxb8 {[%emt 0:00:06]} 23. Qe2 {[%emt 0:00:00]} Rb2 {[%emt 0:06:28]} 24. Rd2 {[%emt 0:00:00]} Rb1 {[%emt 0:00:05]} 25. Kg2 $1 {[%emt 0:00:00]} g5 {[%emt 0:12:53][%cal Og5g4]} 26. Rc2 {[%emt 0:00:00]} Bb4 {[%emt 0:05:30]} 27. Bxb4 {[%emt 0:00:00]} Qxb4 {[%emt 0:01:26]} 28. h3 {[%emt 0:00:00]} (28. Qd2 $1 $14) 28... Re1 $132 {[%emt 0:01:25][%mdl 2048] Black is not keeping still} 29. Qd2 {[%emt 0:00:00]} Qb1 {[%emt 0:02:09]} 30. Rb2 {[%emt 0:00:00]} Qa1 {[%emt 0:00:09] Threatens to win with ...Rh1.} 31. e4 {[%emt 0:00:00][%cal Be3e4,Be4e5][%mdl 32] White wants to mate with Rb8+.} Rg1+ {[%emt 0:02:06]} (31... h6 $1 $11 32. e5 Rh1 33. Rb8+ (33. exf6 $2 Qg1#) 33... Kh7 34. Qd3+ (34. exf6 $2 Qg1#) 34... Ne4 35. Bxe4+ dxe4 36. Qxe4+ Kg7) 32. Kh2 $16 {[%emt 0:00:00] White threatens Rb8+ and mate.} h6 {[%emt 0:00:54] [#]} (32... Qc1 $16 {might work better.}) 33. Rb8+ {[%emt 0:00:00]} (33. e5 $1 $18 {[%cal Re5f6] and the rest is easy.} Nh7 34. a4) 33... Kg7 {[%emt 0:00:06] [#] And now ...Qf1 would win.} 34. e5 $1 {[%emt 0:00:00] Really sharp!} Ne4 {[%emt 0:00:16][%mdl 8192]} (34... Nd7 $16 35. Rb7 Nf8) 35. Qb4 {[%emt 0:00:00] Weighted Error Value: White=0.15 (very precise) /Black=0.46.  Loses game:     	---       	Black=1      Mistake:       	White=2     	Black=3      Inaccurate:     	---       	Black=2      OK:         	White=8     	Black=13     Best:        	White=3     	---        Strong:       	White=2     	---} 1-0

[Event "NY Presidents Day GM-A 2024"]
[Site "New York"]
[Date "2024.02.20"]
[Round "9.1"]
[White "Yu, Jiangwei"]
[Black "Lu, Maximillian"]
[Result "0-1"]
[ECO "E52"]
[WhiteElo "2357"]
[BlackElo "2371"]
[Annotator "TA"]
[PlyCount "120"]
[EventDate "2024.02.14"]
[EventType "tourn"]
[EventCountry "USA"]
[SourceTitle "playchess.com"]
[Source "ChessBase"]
[SourceQuality "1"]
[TimeControl "5400+30"]

1. d4 {[%emt 0:02:20]} Nf6 {[%emt 0:00:09]} 2. c4 {[%emt 0:00:08]} e6 {[%emt 0:00:06]} 3. Nc3 {[%emt 0:00:12]} Bb4 {[%emt 0:00:40]} 4. e3 {[%emt 0:01:34]} b6 {[%emt 0:00:07]} 5. Bd2 {[%emt 0:00:25]} Bb7 {[%emt 0:00:08]} 6. Nf3 {[%emt 0:00:14]} O-O {[%emt 0:00:10]} 7. Bd3 {[%emt 0:00:11]} d5 {[%emt 0:00:02]} 8. cxd5 {[%emt 0:00:12]} exd5 {[%emt 0:00:02]} 9. O-O {[%emt 0:00:41]} Bd6 {[%emt 0:00:01]} 10. Rc1 {[%emt 0:01:11] E52: Nimzo-Indian: Rubinstein: 4...0-0 5 Nf3 d5 6 Bd3 b6.} c5 11. dxc5 {[%emt 0:15:39]} bxc5 {[%emt 0:05:35]} 12. Nb5 $146 {[%emt 0:00:58]} ({Predecessor:} 12. Re1 Re8 13. Ne2 Nbd7 14. Ng3 Rc8 15. Qa4 Bc6 16. Bb5 Bxb5 17. Qxb5 Qb6 18. Qa4 {½-½ Sadhwani,R (2609)-Arjun,K (2537) Chess Super League 2021 (3.3)}) 12... Be7 {[%emt 0:00:01]} 13. b4 {[%emt 0:00:27]} a6 {[%emt 0:01:21]} 14. Na3 {[%emt 0:02:45]} cxb4 {[%emt 0:02:26]} 15. Nc2 {[%emt 0:00:05]} a5 {[%emt 0:03:28]} 16. Ncd4 {[%emt 0:00:43]} Nbd7 {[%emt 0:03:02]} 17. Nf5 {[%emt 0:05:05]} Nc5 {[%emt 0:01:39]} 18. Be2 {[%emt 0:00:28]} Nfe4 {[%emt 0:02:20]} 19. Be1 {[%emt 0:01:43]} Bf6 {[%emt 0:08:16]} 20. N3d4 {[%emt 0:00:28]} Rc8 {[%emt 0:03:32]} 21. f3 {[%emt 0:13:50]} Nd6 {[%emt 0:01:49]} 22. Bg3 {[%emt 0:00:34]} Bxd4 {[%emt 0:07:16]} 23. Nxd4 {[%emt 0:01:37]} Nc4 {[%emt 0:03:34]} 24. Nf5 {[%emt 0:02:07]} Qf6 {[%emt 0:17:03]} 25. e4 {[%emt 0:08:17]} Nb2 {[%emt 0:04:11]} (25... dxe4 $6 26. fxe4 Rfd8 (26... Bxe4 $2 27. Nd6 $18) 27. Nd6 $11) (25... Rfd8 $17 26. Qe1 dxe4 27. Bxc4 Qxf5 28. fxe4 Qxe4 29. Qxe4) 26. Qd2 $1 $11 {[%emt 0:02:16]} dxe4 {[%emt 0:00:26]} 27. Nd6 {[%emt 0:07:04]} Nbd3 {[%emt 0:05:12]} 28. Rc4 $1 {[%emt 0:04:40]} (28. fxe4 $2 Qd4+ 29. Bf2 (29. Kh1 $2 Nf2+ 30. Rxf2 Qxd2 $19) 29... Qxd6 $19) 28... Qe6 {[%emt 0:20:57]} 29. fxe4 {[%emt 0:00:39]} Ba6 {[%emt 0:02:21]} (29... Bxe4 $6 30. Rd4 $16 (30. Rxe4 Nxe4 31. Nxe4 Rfd8 $11)) (29... Nxe4 $5 30. Rxe4 Bxe4 31. Nxe4 Qxe4 32. Qxd3 Qe6 $16) 30. Bxd3 {[%emt 0:06:43]} Nxd3 {[%emt 0:00:27]} 31. Rxc8 {[%emt 0:00:07]} Rxc8 {[%emt 0:00:00]} 32. Nxc8 {[%emt 0:00:20]} Qxc8 {[%emt 0:00:01]} 33. Qg5 {[%emt 0:01:33]} a4 {[%emt 0:02:16]} 34. Be1 {[%emt 0:18:29]} h6 {[%emt 0:02:30]} 35. Qe7 {[%emt 0:00:33]} Qc4 {[%emt 0:02:57]} (35... f6 {simplifies} 36. Bxb4 Nxb4 37. Qxb4 Bxf1 38. Kxf1 Qc2) 36. Qe8+ {[%emt 0:00:28]} Kh7 {[%emt 0:00:01]} 37. Qxf7 {[%emt 0:02:15]} Qxf7 {[%emt 0:00:53]} 38. Rxf7 {[%emt 0:00:01]} Nxe1 {[%emt 0:00:10]} 39. Ra7 {[%emt 0:00:05]} Bb5 {[%emt 0:01:59]} 40. Rb7 {[%emt 0:00:07]} Bc6 {[%emt 0:00:09]} 41. Rxb4 {[%emt 0:00:06]} Nd3 {[%emt 0:00:01]} 42. Rd4 {[%emt 0:00:49]} Bb5 {[%emt 0:00:33]} 43. a3 {[%emt 0:01:53]} Kg6 {[%emt 0:00:27]} 44. Rd5 {[%emt 0:00:54]} Bc4 {[%emt 0:00:00]} 45. Rd4 {[%emt 0:00:12]} (45. Ra5 $15 Bb3 46. h4) 45... Bb5 $2 {[%emt 0:00:09]} ({Black should play} 45... Ne5 $19 {Threatens to win with ...Bb3.} 46. Rd6+ Kg5) 46. g3 {[%emt 0:00:59]} ({Better is} 46. Rd5 $11 Bc4 47. Rf5) 46... Kf6 {[%emt 0:00:11]} 47. Kg2 {[%emt 0:00:20]} (47. h4 $15) 47... Ne1+ $17 {[%emt 0:01:09]} 48. Kf2 {[%emt 0:00:04]} Nc2 {[%emt 0:00:01]} 49. Rd6+ {[%emt 0:00:49] [#]} Ke7 $1 {[%emt 0:00:26]} 50. Rg6 {[%emt 0:00:20]} Kf7 {[%emt 0:00:05]} 51. Rb6 {[%emt 0:00:08]} Nxa3 {[%emt 0:00:35]} 52. Kf3 $2 {[%emt 0:01:19][%mdl 8192]} (52. Rb7+ $17 {is a better chance.} Kf6 53. h4) 52... Nc2 $19 {[%emt 0:01:05]} 53. Kf4 {[%emt 0:01:07]} (53. Rxb5 $2 {perishes.} Nd4+ 54. Ke3 Nxb5) ({Don't play} 53. Rb7+ Kg6 54. Kf4 (54. Rxb5 $2 {too greedy.} Nd4+ 55. Kf4 Nxb5 $19) (54. Rb6+ $2 Kh7 $19) 54... Bc4) 53... Bc4 {[%emt 0:03:03]} 54. Rb2 {[%emt 0:00:12]} (54. Rc6 $142 Bb3 55. Rc7+ Kg6 56. Rb7) 54... Bb3 $19 {[%emt 0:00:23]} 55. Ke5 {[%emt 0:00:44]} Ke7 {[%emt 0:00:26]} 56. h4 {[%emt 0:00:15]} Ne3 {[%emt 0:01:04]} (56... Na3 $142 {( -> ...Nc4+)} 57. Kf5 Nc4) 57. Kf4 $2 {[%emt 0:00:54]} (57. Kd4 Nc2+ 58. Ke5) 57... Nc4 $19 {[%emt 0:00:35]} 58. Rb1 {[%emt 0:00:08]} Ke6 {[%emt 0:00:26]} 59. h5 {[%emt 0:00:31]} a3 {[%emt 0:00:24]} 60. Ra1 {[%emt 0:00:49]} a2 {[%emt 0:00:06]} 0-1

[Event "NY Presidents Day GM-A 2024"]
[Site "New York"]
[Date "2024.02.20"]
[Round "9.2"]
[White "Rorrer, Grayson"]
[Black "Novik, Maxim"]
[Result "1/2-1/2"]
[ECO "B19"]
[WhiteElo "2396"]
[BlackElo "2399"]
[Annotator "TA"]
[PlyCount "65"]
[EventDate "2024.02.14"]
[EventType "tourn"]
[EventCountry "USA"]
[SourceTitle "playchess.com"]
[Source "ChessBase"]
[SourceQuality "1"]
[TimeControl "5400+30"]

{[%evp 18,65,15,15,22,0,0,0,20,0,10,20,30,16,23,20,74,78,127,141,123,-11,54,0,0,0,12,-9,16,17,10,9,10,0,0,0,10,-76,7,-149,0,-77,0,0,0,-82,0,0,0,-85]} 1. e4 {[%emt 0:00:02]} c6 {[%emt 0:00:38]} 2. d4 {[%emt 0:00:08]} d5 {[%emt 0:00:04]} 3. Nd2 {[%emt 0:00:06]} dxe4 {[%emt 0:00:05]} 4. Nxe4 {[%emt 0:00:06]} Bf5 {[%emt 0:00:02]} 5. Ng3 {[%emt 0:00:09]} Bg6 {[%emt 0:00:01]} 6. h4 {[%emt 0:00:10]} h6 {[%emt 0:00:01]} 7. Nf3 {[%emt 0:00:10]} e6 {[%emt 0:00:05]} 8. Ne5 {[%emt 0:00:06]} Bh7 {[%emt 0:00:02]} 9. Bd3 {[%emt 0:00:08]} Bxd3 {[%emt 0:00:10]} 10. Qxd3 {[%emt 0:00:05]} Nd7 {[%emt 0:00:02]} 11. Qe2 {[%emt 0:00:10]} Ngf6 {[%emt 0:01:51]} 12. O-O {[%emt 0:00:13]} Be7 {[%emt 0:01:21]} 13. Rd1 {[%emt 0:01:03][%cal Bf1d1,Bd1d3,Bd3b3][%mdl 32]} O-O {[%emt 0:04:27]} 14. c4 {[%emt 0:00:18]} Re8 {[%emt 0:02:42]} 15. Bf4 {[%emt 0:00:39]} Bf8 {[%emt 0:00:14]} 16. Rd3 {[%emt 0:02:57]} Qe7 {[%emt 0:04:03]} (16... Qc7 $11) 17. Rb3 $16 {[%emt 0:02:48]} Nb6 {[%emt 0:01:47]} (17... Nxe5 $142 18. dxe5 Nh7) 18. a4 $1 {[%emt 0:00:49]} Nc8 {[%emt 0:00:30]} 19. Nh5 {[%emt 0:07:27] White is much more active.} (19. c5 $16) 19... Nd6 {[%emt 0:05:49]} ({Black should play} 19... Nxh5 $11 20. Qxh5 Nd6) 20. Rd1 {[%emt 0:14:07]} Nxh5 {[%emt 0:10:07]} 21. Qxh5 {[%emt 0:00:14]} Rad8 {[%emt 0:01:55]} 22. g3 {[%emt 0:08:30]} g6 {[%emt 0:01:54]} (22... f6 $5 23. Ng4 Nxc4 $11) 23. Qe2 {[%emt 0:01:34]} Bg7 {[%emt 0:00:30]} 24. Rbd3 {[%emt 0:03:21]} Nf5 {[%emt 0:01:32]} 25. Qe4 {[%emt 0:00:22]} Nd6 {[%emt 0:00:50]} 26. Qe2 {[%emt 0:03:44]} Nf5 {[%emt 0:00:09]} 27. Qd2 {[%emt 0:00:37] [#]} (27. a5 $11) 27... Kh7 {[%emt 0:03:58]} (27... c5 $1 $17 28. dxc5 Rxd3 29. Nxd3 e5) 28. Qa5 $2 {[%emt 0:02:35] [#]} (28. b3 $11) 28... a6 {[%emt 0:03:07]} ({Better is} 28... f6 $1 $17 {[%cal Rf6e5]} 29. Ng4 e5 30. dxe5 Rxd3 31. Rxd3 fxe5) 29. Qb6 {[%emt 0:04:33]} (29. Nf3 $11) 29... Nd6 {[%emt 0:07:38]} (29... f6 $17 30. Ng4 e5 31. dxe5 Rxd3 32. Rxd3 fxe5) 30. Qb4 {[%emt 0:03:34]} Nf5 {[%emt 0:00:52]} (30... g5 $11 31. hxg5 hxg5) 31. Qb6 $17 {[%emt 0:01:07]} Nd6 {[%emt 0:00:12]} (31... f6 $17 32. Ng4 e5 33. dxe5 Rxd3 34. Rxd3 fxe5 35. Nxe5 Bxe5 36. Bxe5 Qxe5 37. Qxb7+ Ng7) 32. Qc5 {[%emt 0:01:50]} (32. Qb4 $11 {keeps the balance.}) 32... Nf5 {[%emt 0:01:01]} 33. Qb6 {[%emt 0:00:40] Weighted Error Value: White=0.33/Black=0.30.  Mistake:       	White=5     	Black=8      Inaccurate:     	White=1     	---        OK:         	White=5     	Black=8      Best:        	White=1     	Black=1      Strong:       	White=1     	---} 1/2-1/2

[Event "NY Presidents Day GM-A 2024"]
[Site "New York"]
[Date "2024.02.19"]
[Round "9.3"]
[White "Kaliksteyn, Alexander"]
[Black "Griffith, Kyron"]
[Result "1/2-1/2"]
[ECO "A18"]
[WhiteElo "2363"]
[BlackElo "2367"]
[Annotator "TA"]
[PlyCount "31"]
[EventDate "2024.02.14"]
[EventType "tourn"]
[EventCountry "USA"]
[SourceTitle "playchess.com"]
[Source "ChessBase"]
[SourceQuality "1"]
[TimeControl "5400+30"]

{[%evp 16,31,12,-6,13,16,22,0,0,-1,-3,-15,32,0,20,0,0,-20]} 1. c4 {[%emt 0:00:01]} e6 {[%emt 0:00:05]} 2. Nc3 {[%emt 0:00:05]} Nf6 {[%emt 0:00:09]} 3. e4 {[%emt 0:00:05]} d5 {[%emt 0:00:05]} 4. e5 {[%emt 0:00:08]} d4 {[%emt 0:00:08]} 5. exf6 {[%emt 0:00:10]} dxc3 {[%emt 0:00:07]} 6. bxc3 {[%emt 0:00:18]} Qxf6 {[%emt 0:00:07]} 7. Nf3 {[%emt 0:00:08]} b6 {[%emt 0:00:16]} 8. d4 {[%emt 0:00:29]} Bb7 {[%emt 0:00:17]} 9. Be2 {[%emt 0:01:56]} Nd7 {[%emt 0:01:05]} 10. O-O {[%emt 0:00:09]} h6 {[%emt 0:00:20]} 11. a4 {[%emt 0:00:42]} Bd6 {[%emt 0:00:49]} 12. Re1 {[%emt 0:00:36]} O-O {[%emt 0:00:13]} 13. a5 {[%emt 0:00:13]} Be4 {[%emt 0:01:19]} (13... e5 $11) 14. Be3 {[%emt 0:00:45]} Rfd8 {[%emt 0:00:55]} 15. axb6 {[%emt 0:00:06]} axb6 {[%emt 0:00:05]} 16. Rxa8 {[%emt 0:00:16] Not much happened in this game.   Weighted Error Value: White=0.14 (very precise) /Black=0.15 (very precise) .  Mistake:       	---       	Black=1      Inaccurate:     	White=1     	---        OK:         	White=1     	Black=3} 1/2-1/2

[Event "NY Presidents Day GM-A 2024"]
[Site "New York"]
[Date "2024.02.19"]
[Round "9.4"]
[White "Mandizha, Farai"]
[Black "Paragua, Mark"]
[Result "1/2-1/2"]
[ECO "E05"]
[WhiteElo "2367"]
[BlackElo "2448"]
[Annotator "TA"]
[PlyCount "32"]
[EventDate "2024.02.14"]
[EventType "tourn"]
[EventCountry "USA"]
[SourceTitle "playchess.com"]
[Source "ChessBase"]
[SourceQuality "1"]
[TimeControl "5400+30"]

{[%evp 18,32,10,11,8,0,29,19,18,9,14,7,10,0,4,10,10]} 1. d4 {[%emt 0:00:20]} Nf6 {[%emt 0:01:53]} 2. c4 {[%emt 0:00:09]} e6 {[%emt 0:00:11]} 3. Nf3 {[%emt 1:31:31]} d5 {[%emt 0:00:08]} 4. g3 {[%emt 0:00:00]} Be7 {[%emt 0:00:09]} 5. Bg2 {[%emt 0:00:00]} O-O {[%emt 0:00:07]} 6. O-O {[%emt 0:00:00]} dxc4 {[%emt 0:00:11]} 7. Qc2 {[%emt 0:00:00]} a6 {[%emt 0:00:06]} 8. a4 {[%emt 0:00:00]} Bd7 {[%emt 0:00:10]} 9. Qxc4 {[%emt 0:00:00]} Bc6 {[%emt 0:00:06]} 10. Bg5 {[%emt 0:00:00]} Nbd7 {[%emt 0:00:15]} 11. Nbd2 {[%emt 0:00:00]} h6 {[%emt 0:00:29] [#] aiming for ...Nb6.} 12. Bxf6 {[%emt 0:00:00]} Nxf6 {[%emt 0:00:11] The position is equal.} 13. Rfc1 {[%emt 0:00:00]} a5 {[%emt 0:00:39]} 14. e3 {[%emt 0:00:00]} Bb4 {[%emt 0:00:22]} 15. Qc2 {[%emt 0:00:00]} Rc8 {[%emt 0:00:24]} 16. Rd1 {[%emt 0:00:00]} Qe7 {[%emt 0:01:23] An uneventful encounter.   Weighted Error Value: White=0.04 (flawless) /Black=0.06 (flawless) .  Inaccurate:     	---       	Black=1      OK:         	White=2     	Black=3      Best:        	White=1     	---} 1/2-1/2